bitfinex/quotes_BTCUSD_20241229
["timestamp","ask_amount","ask_price","bid_price","bid_amount"]
[1735468224706,2.281,95320.0,95315.0,0.001]
[1735468225033,0.00104447,95319.0,95315.0,0.001]
[1735468225341,2.18,95318.0,95315.0,0.001]
[1735468225886,2.293,95320.0,95315.0,0.001]
[1735468226071,0.00104447,95319.0,95315.0,0.001]
[1735468226220,2.186,95318.0,95315.0,0.001]
[1735468226625,2.735,95321.0,95311.0,5.077e-05]
[1735468226829,0.01646125,95318.0,95311.0,5.077e-05]
[1735468227605,0.01646125,95318.0,95315.0,0.001]
[1735468229652,0.01646125,95318.0,95311.0,0.00013617]
[1735468229851,0.01646125,95318.0,95315.0,0.001]
[1735468230276,0.18920135,95317.0,95315.0,0.001]
[1735468231021,0.21925403,95320.0,95315.0,0.001]
[1735468231256,0.21925403,95320.0,95311.0,0.00013617]
[1735468231257,0.01646161,95317.0,95311.0,0.00013617]
[1735468231500,0.01646161,95317.0,95311.0,0.01215814]
[1735468231672,0.01646161,95317.0,95315.0,0.001]
[1735468232718,0.01646161,95317.0,95311.0,0.01215814]
[1735468232919,0.01646161,95317.0,95315.0,0.001]
[1735468235315,0.01646161,95317.0,95316.0,0.0772]
[1735468236472,0.01646161,95317.0,95316.0,0.08733581]
[1735468236673,0.01646161,95317.0,95316.0,0.0792]
[1735468237824,0.00121527,95325.0,95316.0,0.0792]
[1735468238882,0.00121527,95325.0,95316.0,0.0772]
[1735468239076,0.00221527,95325.0,95316.0,0.0772]
[1735468239283,0.00421527,95325.0,95316.0,0.0772]
[1735468239889,0.00421527,95325.0,95311.0,0.00013617]
[1735468240196,0.00421527,95325.0,95315.0,8.54e-05]
[1735468240414,0.01646087,95322.0,95316.0,0.1225]
[1735468240610,0.00104447,95321.0,95316.0,0.1225]
[1735468241603,0.23672257,95320.0,95316.0,0.1225]
[1735468241801,0.00104447,95319.0,95316.0,0.1225]
[1735468246067,0.23672257,95320.0,95316.0,0.13477216]
[1735468246281,0.23672257,95320.0,95317.0,0.0761]
[1735468246890,0.25318259,95320.0,95317.0,0.0761]
[1735468247089,0.01646002,95320.0,95317.0,0.0761]
[1735468249022,0.01646002,95320.0,95317.0,0.0781]
[1735468249590,0.01646002,95320.0,95317.0,0.0811]
[1735468249991,0.01646002,95320.0,95317.0,0.0821]
[1735468251600,0.01646002,95320.0,95317.0,0.0821854]
[1735468251800,0.01663082,95320.0,95317.0,0.0821854]
[1735468260398,0.01663082,95320.0,95318.0,0.0127707]
[1735468261508,0.01663082,95320.0,95319.0,0.1321]
[1735468261710,0.01663082,95320.0,95319.0,0.33608632]
[1735468262132,0.0001708,95320.0,95319.0,0.33608632]
[1735468262736,0.0011708,95320.0,95319.0,0.44508632]
[1735468262977,0.0011708,95320.0,95319.0,0.4819891]
[1735468263504,0.0021708,95320.0,95319.0,0.4909891]
[1735468263658,0.0011708,95320.0,95319.0,0.4909891]
[1735468263867,0.0021708,95320.0,95319.0,0.4999891]
[1735468264409,0.0021708,95320.0,95319.0,0.5049891]
[1735468264901,0.0021708,95320.0,95319.0,0.4999891]
[1735468265351,0.0021708,95320.0,95319.0,0.5049891]
[1735468265549,0.0001708,95320.0,95319.0,0.4869891]
[1735468266667,0.0001708,95320.0,95319.0,0.44108632]
[1735468269098,0.16846641,95361.0,95332.0,0.1]
[1735468269339,2.799244,95360.0,95332.0,0.20398632]
[1735468269842,2.799244,95360.0,95332.0,0.20497702]
[1735468270421,2.804244,95360.0,95332.0,0.20497702]
[1735468270631,2.799244,95359.0,95333.0,0.0287477]
[1735468271438,2.82127846,95359.0,95333.0,0.0287477]
[1735468271640,2.799244,95358.0,95333.0,0.0287477]
[1735468271837,2.82640088,95358.0,95333.0,0.0287477]
[1735468272162,2.799244,95357.0,95333.0,0.0287477]
[1735468272369,2.799244,95357.0,95334.0,0.03162247]
[1735468273363,2.803244,95357.0,95334.0,0.03162247]
[1735468273566,2.799244,95356.0,95334.0,0.03162247]
[1735468273767,2.799244,95357.0,95334.0,0.03162247]
[1735468274086,2.803244,95357.0,95334.0,0.03162247]
[1735468274309,2.799244,95356.0,95335.0,0.03190995]
[1735468275765,2.804244,95356.0,95335.0,0.03190995]
[1735468276257,2.422,95355.0,95335.0,0.03190995]
[1735468277238,2.802244,95356.0,95335.0,0.03190995]
[1735468277557,1.305,95355.0,95335.0,0.03190995]
[1735468277753,1.305,95355.0,95332.0,0.20497702]
[1735468277961,1.306,95355.0,95332.0,0.1009907]
[1735468278205,2.799244,95354.0,95332.0,0.1009907]
[1735468278340,2.068,95353.0,95332.0,0.1009907]
[1735468278539,2.21,95354.0,95332.0,0.1009907]
[1735468278863,0.004,95355.0,95333.0,0.01834907]
[1735468279060,2.215,95354.0,95333.0,0.01834907]
[1735468279262,2.217,95354.0,95333.0,0.01834907]
[1735468279464,2.799244,95353.0,95333.0,0.01939366]
[1735468280255,2.799244,95354.0,95333.0,0.01939366]
[1735468280498,0.001,95353.0,95333.0,0.01939366]
[1735468280650,2.799244,95352.0,95334.0,0.02028844]
[1735468280845,2.53,95352.0,95334.0,0.02028844]
[1735468281621,2.434,95352.0,95334.0,0.02028844]
[1735468281971,0.775,95351.0,95336.0,0.0758]
[1735468282212,0.836,95353.0,95336.0,0.0758]
[1735468282440,0.001,95352.0,95337.0,0.02453238]
[1735468282699,0.202,95351.0,95337.0,0.02453238]
[1735468283296,0.172,95351.0,95337.0,0.02453238]
[1735468283531,0.171,95350.0,95338.0,0.0758]
[1735468283769,0.106,95349.0,95338.0,0.0758]
[1735468284000,0.138,95351.0,95339.0,0.02495677]
[1735468284189,1.979,95356.0,95339.0,0.02495677]
[1735468285706,1.953,95356.0,95339.0,0.02495677]
[1735468287022,1.954,95356.0,95339.0,0.02495677]
[1735468287217,0.776,95355.0,95339.0,0.02495677]
[1735468288189,0.421,95355.0,95340.0,0.01490868]
[1735468288419,0.219,95355.0,95341.0,0.0758]
[1735468288790,0.212,95354.0,95341.0,0.0758]
[1735468289330,0.21210125,95354.0,95341.0,0.0758]
[1735468289547,0.00010125,95354.0,95341.0,0.0758]
[1735468289836,0.259,95353.0,95341.0,0.0758]
[1735468290216,0.236,95353.0,95341.0,0.0758]
[1735468290422,0.126,95353.0,95341.0,0.09219955]
[1735468290622,0.13,95353.0,95341.0,0.0758]
[1735468291303,0.131,95353.0,95341.0,0.0758]
[1735468291608,0.13,95352.0,95341.0,0.0758]
[1735468291848,0.102,95352.0,95341.0,0.0758]
[1735468292227,0.002,95353.0,95341.0,0.0758]
[1735468292785,0.001,95353.0,95341.0,0.0758]
[1735468293210,0.00010125,95354.0,95341.0,0.0758]
[1735468293412,0.001,95352.0,95341.0,0.0758]
[1735468293589,0.00010125,95354.0,95341.0,0.0758]
[1735468294031,0.002,95353.0,95341.0,0.0758]
[1735468294334,0.102,95353.0,95341.0,0.0758]
[1735468294691,0.001,95352.0,95341.0,0.0758]
[1735468294876,0.00110125,95354.0,95341.0,0.0758]
[1735468295050,0.1,95353.0,95341.0,0.0758]
[1735468295246,0.00110125,95354.0,95341.0,0.0758]
[1735468296053,0.00010125,95354.0,95341.0,0.0758]
[1735468296376,0.002,95353.0,95341.0,0.0758]
[1735468296982,0.001,95353.0,95341.0,0.0758]
[1735468297585,0.00110125,95354.0,95341.0,0.0758]
[1735468297793,0.00010125,95354.0,95341.0,0.0758]
[1735468297941,0.129,95353.0,95341.0,0.0758]
[1735468298150,0.126,95352.0,95341.0,0.0758]
[1735468298696,0.118,95351.0,95341.0,0.0758]
[1735468298869,0.118,95352.0,95341.0,0.0758]
[1735468299050,0.002,95353.0,95341.0,0.0758]
[1735468299465,0.001,95353.0,95341.0,0.0758]
[1735468299680,0.00110125,95354.0,95342.0,0.012413]
[1735468299887,0.00110125,95354.0,95342.0,0.0823]
[1735468300090,0.00310125,95354.0,95342.0,0.0823]
[1735468300290,0.00210125,95354.0,95342.0,0.0823]
[1735468300489,0.001,95353.0,95342.0,0.0823]
[1735468300715,0.002,95353.0,95342.0,0.0823]
[1735468300925,0.00010125,95354.0,95342.0,0.0823]
[1735468301322,0.00310125,95354.0,95342.0,0.0823]
[1735468301755,0.001,95353.0,95342.0,0.0823]
[1735468302566,0.001,95353.0,95343.0,0.00823854]
[1735468302772,0.001,95353.0,95347.0,0.1495]
[1735468302974,0.002,95353.0,95348.0,0.08334449]
[1735468303176,0.001,95353.0,95348.0,0.08334449]
[1735468303388,0.00210125,95354.0,95348.0,0.08334449]
[1735468303596,0.00210125,95354.0,95350.0,0.0823]
[1735468303769,0.001,95353.0,95350.0,0.08334446]
[1735468304174,0.00010125,95354.0,95350.0,0.08334446]
[1735468304574,0.00010125,95354.0,95350.0,0.0823]
[1735468304961,0.00010125,95354.0,95350.0,0.0873]
[1735468306035,0.00010125,95354.0,95350.0,0.0893]
[1735468306765,0.00010125,95354.0,95350.0,0.0843]
[1735468307234,0.00010125,95354.0,95350.0,0.0893]
[1735468310012,0.00010125,95354.0,95350.0,0.04127863]
[1735468310251,0.00010125,95354.0,95351.0,0.0783]
[1735468312193,0.00010125,95354.0,95351.0,0.0853]
[1735468313458,0.00010125,95354.0,95351.0,0.007]
[1735468318103,2.799244,95353.0,95351.0,0.007]
[1735468318386,2.83277041,95353.0,95351.0,0.007]
[1735468318608,2.927144,95352.0,95351.0,0.007]
[1735468318868,2.95122028,95352.0,95351.0,0.005]
[1735468319367,2.95122028,95352.0,95351.0,0.006]
[1735468319777,2.95122028,95352.0,95351.0,0.005]
[1735468320008,2.95522028,95352.0,95350.0,8.54e-05]
[1735468320201,2.799244,95351.0,95350.0,8.54e-05]
[1735468321213,2.808244,95351.0,95350.0,0.0010854]
[1735468322742,2.812244,95351.0,95350.0,0.0010854]
[1735468324635,3.09567151,95351.0,95350.0,0.0010854]
[1735468325343,3.09167151,95351.0,95350.0,0.0010854]
[1735468325543,2.808244,95351.0,95350.0,0.0010854]
[1735468325754,2.812244,95351.0,95350.0,0.0010854]
[1735468326698,2.803244,95351.0,95350.0,8.54e-05]
[1735468326886,2.811244,95351.0,95350.0,0.0010854]
[1735468327622,2.811244,95351.0,95350.0,8.54e-05]
[1735468327803,2.803244,95351.0,95350.0,8.54e-05]
[1735468327942,2.810244,95351.0,95350.0,0.0010854]
[1735468328142,2.806244,95351.0,95350.0,0.0010854]
[1735468329010,2.810244,95351.0,95350.0,0.0010854]
[1735468329367,2.806244,95351.0,95350.0,0.0010854]
[1735468329588,2.802244,95351.0,95350.0,8.54e-05]
[1735468329926,2.809244,95351.0,95350.0,0.0010854]
[1735468330109,2.809244,95351.0,95350.0,8.54e-05]
[1735468330516,2.816244,95351.0,95350.0,0.0010854]
[1735468330677,2.809244,95351.0,95350.0,0.0010854]
[1735468331082,2.813244,95351.0,95350.0,0.0020854]
[1735468331333,2.806244,95351.0,95350.0,8.54e-05]
[1735468331570,2.809244,95351.0,95350.0,8.54e-05]
[1735468331906,2.806244,95351.0,95350.0,8.54e-05]
[1735468332105,2.812244,95351.0,95350.0,0.0010854]
[1735468332306,2.814244,95351.0,95350.0,0.0010854]
[1735468332711,2.812244,95351.0,95350.0,0.0010854]
[1735468333061,2.814244,95351.0,95350.0,0.0010854]
[1735468333269,2.801244,95351.0,95350.0,8.54e-05]
[1735468333566,2.805244,95351.0,95350.0,8.54e-05]
[1735468334229,2.809244,95351.0,95350.0,8.54e-05]
[1735468337941,2.83640088,95351.0,95350.0,8.54e-05]
[1735468348442,2.94059182,95351.0,95350.0,8.54e-05]
[1735468351295,3.17651352,95351.0,95350.0,8.54e-05]
[1735468351842,3.17651352,95351.0,95329.0,0.07297008]
[1735468352080,2.799244,95350.0,95329.0,0.07396888]
[1735468352252,2.85279182,95350.0,95329.0,0.07396888]
[1735468352455,2.799244,95349.0,95329.0,0.07297008]
[1735468352716,0.05354782,95348.0,95329.0,0.07297008]
[1735468352897,2.799244,95347.0,95329.0,0.07297008]
[1735468353097,0.00403269,95346.0,95329.0,0.07297008]
[1735468353298,2.799244,95345.0,95329.0,0.07397008]
[1735468353505,0.00403269,95344.0,95329.0,0.07397008]
[1735468353665,2.799244,95343.0,95329.0,0.07297008]
[1735468353864,2.799244,95343.0,95329.0,0.07397008]
[1735468354783,2.799244,95343.0,95329.0,0.07297008]
[1735468355389,2.801244,95343.0,95329.0,0.07297008]
[1735468355605,0.002,95343.0,95329.0,0.07297008]
[1735468355810,2.799244,95342.0,95329.0,0.07297008]
[1735468356949,2.801244,95342.0,95329.0,0.07297008]
[1735468357172,2.799244,95341.0,95329.0,0.07297008]
[1735468358337,2.800244,95341.0,95329.0,0.07297008]
[1735468358544,2.799244,95340.0,95329.0,0.07297008]
[1735468358947,2.799244,95340.0,95329.0,0.07305548]
[1735468360306,2.802244,95340.0,95329.0,0.07305548]
[1735468360460,2.799244,95339.0,95329.0,0.07305548]
[1735468361759,2.800244,95339.0,95329.0,0.07305548]
[1735468361964,3.0351657,95338.0,95329.0,0.07305548]
[1735468362167,2.799244,95337.0,95329.0,0.07305548]
[1735468362771,0.2359217,95331.0,95329.0,0.07305548]
[1735468362949,2.799244,95330.0,95329.0,0.07305548]
[1735468363798,2.799244,95336.0,95329.0,0.07305548]
[1735468364020,2.799244,95336.0,95329.0,0.07405548]
[1735468364231,2.799244,95336.0,95329.0,0.0010854]
[1735468364387,2.799244,95336.0,95329.0,0.0020854]
[1735468364388,0.28342751,95335.0,95329.0,0.0020854]
[1735468364593,2.799244,95334.0,95329.0,0.0020854]
[1735468364794,2.799244,95334.0,95329.0,0.0010854]
[1735468365446,3.08267151,95334.0,95329.0,0.0010854]
[1735468365646,2.799244,95333.0,95329.0,8.54e-05]
[1735468366921,2.800244,95333.0,95329.0,8.54e-05]
[1735468367293,2.799244,95332.0,95329.0,8.54e-05]
[1735468368929,2.799244,95333.0,95329.0,8.54e-05]
[1735468369104,2.799244,95331.0,95329.0,8.54e-05]
[1735468369249,2.799244,95330.0,95329.0,8.54e-05]
[1735468369448,2.799244,95333.0,95329.0,8.54e-05]
[1735468370680,2.799244,95333.0,95329.0,0.0010854]
[1735468370880,2.799244,95334.0,95329.0,0.0010854]
[1735468371335,0.0001708,95332.0,95329.0,0.0010854]
[1735468371643,2.799244,95331.0,95329.0,0.0010854]
[1735468371841,2.799244,95331.0,95329.0,8.54e-05]
[1735468380014,0.02715688,95330.0,95329.0,8.54e-05]
[1735468380238,2.82640088,95330.0,95329.0,8.54e-05]
[1735468381189,2.82640088,95330.0,95324.0,0.07638407]
[1735468381393,2.799244,95329.0,95324.0,0.07638407]
[1735468382111,0.23654222,95327.0,95324.0,0.07638407]
[1735468382290,2.799244,95326.0,95324.0,0.07638407]
[1735468383998,2.799244,95326.0,95324.0,0.07646947]
[1735468387101,2.799244,95326.0,95324.0,8.54e-05]
[1735468388306,3.03578622,95326.0,95324.0,8.54e-05]
[1735468388501,2.799244,95325.0,95324.0,8.54e-05]
[1735468390989,3.03578622,95325.0,95324.0,8.54e-05]
[1735468392047,2.799244,95325.0,95324.0,8.54e-05]
[1735468392248,2.799244,95331.0,95324.0,8.54e-05]
[1735468392848,3.11496021,95331.0,95324.0,8.54e-05]
[1735468393122,2.84689406,95330.0,95324.0,8.54e-05]
[1735468393327,2.799244,95329.0,95324.0,8.54e-05]
[1735468395578,2.802244,95329.0,95324.0,8.54e-05]
[1735468395761,2.799244,95328.0,95324.0,8.54e-05]
[1735468396526,0.003,95329.0,95324.0,8.54e-05]
[1735468396729,2.799244,95328.0,95324.0,8.54e-05]
[1735468397154,2.802244,95328.0,95324.0,8.54e-05]
[1735468397433,2.799244,95327.0,95324.0,8.54e-05]
[1735468398697,2.800244,95327.0,95324.0,8.54e-05]
[1735468399006,2.799244,95326.0,95324.0,8.54e-05]
[1735468400101,0.002,95326.0,95324.0,8.54e-05]
[1735468400326,2.799244,95325.0,95324.0,8.54e-05]
[1735468402080,0.003,95325.0,95324.0,8.54e-05]
[1735468402283,2.802244,95325.0,95324.0,8.54e-05]
[1735468402493,2.799244,95325.0,95324.0,8.54e-05]
[1735468402688,2.799244,95328.0,95324.0,8.54e-05]
[1735468402865,0.003,95325.0,95324.0,8.54e-05]
[1735468403064,2.802244,95325.0,95324.0,8.54e-05]
[1735468404352,2.801244,95325.0,95324.0,8.54e-05]
[1735468408818,2.8359173,95325.0,95324.0,8.54e-05]
[1735468408996,2.85479182,95325.0,95324.0,8.54e-05]
[1735468409401,2.56845082,95325.0,95324.0,8.54e-05]
[1735468410543,2.56845082,95325.0,95324.0,0.1256854]
[1735468410761,2.514903,95325.0,95324.0,0.1256854]
[1735468412746,2.235,95325.0,95324.0,0.1256854]
[1735468413103,1.847,95325.0,95324.0,0.1256854]
[1735468413523,1.847,95325.0,95324.0,0.12063435]
[1735468416358,1.477,95325.0,95324.0,0.12063435]
[1735468416905,0.743,95325.0,95324.0,0.12063435]
[1735468417102,0.534,95325.0,95324.0,0.12063435]
[1735468417301,0.503,95325.0,95324.0,0.12063435]
[1735468418472,0.0001708,95327.0,95325.0,0.0779]
[1735468418985,0.241,95326.0,95325.0,0.0779]
[1735468420021,0.241,95326.0,95325.0,0.0819]
[1735468420227,0.0001708,95327.0,95325.0,0.0819]
[1735468420375,0.343,95326.0,95325.0,0.0819]
[1735468420815,0.331,95326.0,95325.0,0.0819]
[1735468421215,0.331,95326.0,95325.0,0.0839]
[1735468421569,0.331,95326.0,95325.0,0.0799]
[1735468421881,0.0001708,95327.0,95325.0,0.0849]
[1735468422086,0.402,95326.0,95325.0,0.0849]
[1735468422839,0.252,95326.0,95325.0,0.0849]
[1735468423050,0.178,95326.0,95325.0,0.0829]
[1735468423253,0.0001708,95327.0,95325.0,0.0829]
[1735468423453,0.0001708,95327.0,95325.0,0.0849]
[1735468423905,0.167,95326.0,95325.0,0.0829]
[1735468424220,0.167,95326.0,95325.0,0.0849]
[1735468424430,0.167,95326.0,95325.0,0.0799]
[1735468424845,0.0001708,95327.0,95325.0,0.0839]
[1735468425041,0.0001708,95327.0,95326.0,0.01327708]
[1735468425244,0.0001708,95327.0,95326.0,0.0779]
[1735468427011,0.0001708,95327.0,95326.0,0.0819]
[1735468427209,0.0001708,95327.0,95326.0,0.0839]
[1735468435530,0.0001708,95327.0,95326.0,0.0819]
[1735468435755,0.0001708,95327.0,95326.0,0.1265]
[1735468436502,0.0001708,95327.0,95326.0,0.1245]
[1735468436704,0.0001708,95327.0,95326.0,0.13896708]
[1735468436879,0.0001708,95327.0,95326.0,0.14296708]
[1735468437079,0.0001708,95327.0,95326.0,0.14096708]
[1735468437418,0.0001708,95327.0,95326.0,0.14296708]
[1735468437962,0.0001708,95327.0,95326.0,0.13896708]
[1735468438376,0.0001708,95327.0,95326.0,0.14396708]
[1735468438888,0.0001708,95327.0,95326.0,0.14501605]
[1735468440424,0.0001708,95327.0,95326.0,0.13054897]
[1735468440586,0.0001708,95327.0,95326.0,0.13254897]
[1735468441812,0.0001708,95327.0,95326.0,0.12754897]
[1735468442285,0.0011708,95327.0,95326.0,0.13454897]
[1735468442505,0.0001708,95327.0,95326.0,0.12554897]
[1735468442698,0.0011708,95327.0,95326.0,0.14054897]
[1735468442863,0.0021708,95327.0,95326.0,0.14054897]
[1735468443073,0.0011708,95327.0,95326.0,0.13454897]
[1735468443472,0.0011708,95327.0,95326.0,0.27302095]
[1735468443685,0.0011708,95327.0,95326.0,0.27197198]
[1735468447431,0.0011708,95327.0,95326.0,0.17197198]
[1735468447633,0.0011708,95327.0,95326.0,0.4759583]
[1735468458085,0.0001708,95327.0,95326.0,0.4669583]
[1735468458309,0.0001708,95327.0,95326.0,0.4759583]
[1735468458570,0.0001708,95327.0,95326.0,0.4669583]
[1735468458738,0.0001708,95327.0,95326.0,0.4619583]
[1735468458939,0.0011708,95327.0,95326.0,0.4769583]
[1735468459498,0.0001708,95327.0,95326.0,0.4709583]
[1735468459698,0.0011708,95327.0,95326.0,0.4779583]
[1735468468008,0.0011708,95327.0,95326.0,0.44448632]
[1735468469591,0.0001708,95327.0,95326.0,0.43748632]
[1735468469892,0.0011708,95327.0,95326.0,0.44448632]
[1735468470444,0.0011708,95327.0,95326.0,0.43548632]
[1735468470645,0.0011708,95327.0,95326.0,0.44448632]
[1735468471002,0.0011708,95327.0,95326.0,0.43548632]
[1735468471409,0.0001708,95327.0,95326.0,0.43748632]
[1735468471570,0.0001708,95327.0,95326.0,0.44348632]
[1735468471571,0.0011708,95327.0,95326.0,0.44348632]
[1735468473789,0.0011708,95327.0,95326.0,0.48827253]
[1735468480528,0.0011708,95327.0,95326.0,0.47927253]
[1735468480706,0.0011708,95327.0,95326.0,0.47327253]
[1735468480913,0.0001708,95327.0,95326.0,0.48227253]
[1735468481127,0.0001708,95327.0,95326.0,0.47927253]
[1735468481328,0.0001708,95327.0,95326.0,0.48827253]
[1735468481541,0.0001708,95327.0,95326.0,0.48227253]
[1735468481969,0.0001708,95327.0,95326.0,0.48827253]
[1735468485313,0.0001708,95327.0,95326.0,0.58298615]
[1735468486248,0.0001708,95327.0,95326.0,0.48827253]
[1735468487560,0.23313533,95357.0,95336.0,0.1]
[1735468487807,0.23324722,95357.0,95337.0,0.201135]
[1735468488364,0.00011189,95357.0,95337.0,0.201135]
[1735468489932,0.00011189,95357.0,95337.0,0.203135]
[1735468491022,0.00019729,95357.0,95337.0,0.203135]
[1735468491221,0.00019729,95357.0,95338.0,0.226]
[1735468491423,0.00019729,95357.0,95340.0,0.0761]
[1735468491580,0.00019729,95357.0,95341.0,0.10503498]
[1735468493803,0.00019729,95357.0,95341.0,0.11303498]
[1735468494893,0.00019729,95357.0,95341.0,0.11503498]
[1735468504411,0.23657236,95368.0,95341.0,0.11503498]
[1735468504684,0.08064008,95368.0,95342.0,0.0461035]
[1735468504836,0.00500303,95367.0,95343.0,0.00104865]
[1735468505019,0.00500303,95367.0,95344.0,0.00104865]
[1735468505214,0.0481,95371.0,95344.0,0.00104865]
[1735468506138,0.0481,95371.0,95343.0,0.003]
[1735468506139,2.514903,95370.0,95343.0,0.003]
[1735468506366,0.07379094,95369.0,95341.0,0.00011189]
[1735468506546,2.52295574,95368.0,95341.0,0.00011189]
[1735468506891,2.58869394,95367.0,95344.0,0.001]
[1735468507095,2.51822117,95366.0,95341.0,0.00011189]
[1735468507299,2.514903,95365.0,95341.0,0.00011189]
[1735468507593,0.0299,95364.0,95341.0,0.00011189]
[1735468507938,2.514903,95363.0,95341.0,0.00011189]
[1735468508448,0.0474,95362.0,95341.0,0.00011189]
[1735468508645,2.514903,95361.0,95341.0,0.00011189]
[1735468509119,0.00230605,95360.0,95341.0,0.00011189]
[1735468509318,2.514903,95359.0,95341.0,0.00211189]
[1735468509624,0.00230162,95358.0,95341.0,0.00211189]
[1735468509827,0.00230162,95358.0,95342.0,0.00104873]
[1735468510511,0.0474,95362.0,95342.0,0.00104873]
[1735468510643,0.00486467,95357.0,95343.0,0.0791]
[1735468510843,0.0474,95362.0,95343.0,0.0791]
[1735468511064,0.00257233,95356.0,95343.0,0.0791]
[1735468511802,0.0474,95362.0,95343.0,0.0791]
[1735468511948,2.449,95361.0,95343.0,0.09712606]
[1735468512158,0.872,95360.0,95343.0,0.09712606]
[1735468512359,0.487,95360.0,95343.0,0.0791]
[1735468512663,0.487,95360.0,95343.0,0.08014873]
[1735468512862,0.487,95360.0,95343.0,0.08514873]
[1735468513264,0.487,95360.0,95343.0,0.08014873]
[1735468513469,0.487,95360.0,95343.0,0.08114873]
[1735468513667,0.487,95360.0,95343.0,0.08414873]
[1735468513894,8.54e-05,95357.0,95344.0,0.00844314]
[1735468514308,8.54e-05,95357.0,95345.0,0.0818]
[1735468516676,8.54e-05,95357.0,95345.0,0.0878]
[1735468517085,8.54e-05,95357.0,95346.0,0.00104873]
[1735468517282,8.54e-05,95357.0,95347.0,0.0768]
[1735468517485,8.54e-05,95357.0,95349.0,0.0768]
[1735468517723,8.54e-05,95357.0,95349.0,0.07784866]
[1735468519777,8.54e-05,95357.0,95349.0,0.08284866]
[1735468520106,8.54e-05,95357.0,95349.0,0.0828]
[1735468538329,8.54e-05,95357.0,95349.0,0.0829708]
[1735468543021,8.54e-05,95357.0,95350.0,0.00104863]
[1735468543216,8.54e-05,95357.0,95351.0,0.0778]
[1735468543414,8.54e-05,95357.0,95352.0,0.00104863]
[1735468543616,8.54e-05,95357.0,95353.0,0.0778]
[1735468544318,8.54e-05,95357.0,95353.0,0.08630194]
[1735468544543,8.54e-05,95357.0,95354.0,0.00104863]
[1735468544778,8.54e-05,95357.0,95355.0,0.0778]
[1735468545553,8.54e-05,95357.0,95355.0,0.07884861]
[1735468546919,8.54e-05,95357.0,95355.0,0.0788]
[1735468547310,8.54e-05,95357.0,95355.0,0.0838]
[1735468554089,2.99989293,95374.0,95355.0,0.0838]
[1735468554465,2.51980054,95373.0,95355.0,0.0838]
[1735468554664,0.00489754,95373.0,95355.0,0.0838]
[1735468555166,0.00489754,95373.0,95355.0,0.0828]
[1735468556259,0.00689754,95373.0,95356.0,0.00840193]
[1735468557130,0.00489754,95373.0,95356.0,0.00840193]
[1735468557349,0.00489754,95373.0,95355.0,0.0778]
[1735468559070,0.00689754,95373.0,95355.0,0.0778]
[1735468559624,0.00489754,95373.0,95355.0,0.0778]
[1735468559828,0.00689754,95373.0,95355.0,0.0778]
[1735468561224,0.00689754,95373.0,95355.0,0.0779708]
[1735468561464,0.00698294,95373.0,95355.0,0.0779708]
[1735468563353,0.24349137,95373.0,95355.0,0.0779708]
[1735468564021,2.514903,95372.0,95355.0,0.0779708]
[1735468564517,0.00489653,95371.0,95355.0,0.0779708]
[1735468564659,2.514903,95370.0,95355.0,0.0779708]
[1735468566815,2.516903,95370.0,95355.0,0.0779708]
[1735468566981,2.514903,95369.0,95355.0,0.0779708]
[1735468568018,0.00229697,95368.0,95355.0,0.0779708]
[1735468569652,0.001,95369.0,95355.0,0.0779708]
[1735468569863,0.00229475,95367.0,95355.0,0.0779708]
[1735468570068,0.00229697,95368.0,95355.0,0.0779708]
[1735468570277,0.00229254,95366.0,95355.0,0.0779708]
[1735468570519,0.00229475,95367.0,95355.0,0.0779708]
[1735468570715,0.00229033,95365.0,95355.0,0.0779708]
[1735468571051,0.01874297,95364.0,95355.0,0.0779708]
[1735468572631,0.01874297,95364.0,95355.0,0.0789708]
[1735468573063,0.01874297,95364.0,95355.0,0.0779708]
[1735468573283,0.01645486,95364.0,95355.0,0.0789708]
[1735468573614,0.00489285,95363.0,95355.0,0.0789708]
[1735468574330,0.975,95362.0,95355.0,0.0789708]
[1735468574745,0.641,95361.0,95355.0,0.0789708]
[1735468574944,0.761,95362.0,95355.0,0.0789708]
[1735468575726,0.761,95362.0,95355.0,0.0779708]
[1735468576080,0.761,95362.0,95355.0,0.0799708]
[1735468576302,0.761,95362.0,95355.0,0.0779708]
[1735468576608,0.291,95362.0,95355.0,0.0779708]
[1735468576847,0.00228147,95361.0,95355.0,0.0799708]
[1735468577073,0.00260695,95363.0,95355.0,0.08808983]
[1735468577306,0.01645486,95364.0,95355.0,0.08808983]
[1735468577756,0.00261116,95363.0,95355.0,0.08808983]
[1735468578144,0.01645486,95364.0,95355.0,0.0799708]
[1735468578605,0.00260586,95363.0,95355.0,0.0799708]
[1735468578837,0.00260586,95363.0,95355.0,0.0779708]
[1735468579030,0.01645486,95364.0,95355.0,0.0779708]
[1735468579255,0.01645486,95364.0,95355.0,0.0799708]
[1735468579446,0.00260586,95363.0,95355.0,0.0799708]
[1735468579991,0.00260586,95363.0,95355.0,0.0779708]
[1735468580250,0.00260586,95363.0,95355.0,0.0001708]
[1735468580251,2.29591891,95362.0,95355.0,0.0001708]
[1735468580500,2.544803,95361.0,95355.0,0.0011708]
[1735468580761,0.0020292,95354.0,95349.0,0.0001708]
[1735468581024,2.514903,95353.0,95349.0,0.0001708]
[1735468582875,0.23640346,95351.0,95349.0,0.0001708]
[1735468583115,2.514903,95350.0,95349.0,0.0001708]
[1735468584117,2.51713913,95350.0,95349.0,0.0001708]
[1735468585939,2.51813913,95350.0,95349.0,0.0001708]
[1735468589833,2.31244312,95350.0,95349.0,0.0001708]
[1735468590034,2.31244313,95350.0,95349.0,0.0001708]
[1735468591932,2.36949095,95350.0,95349.0,0.0001708]
[1735468593744,2.37346955,95350.0,95349.0,0.0001708]
[1735468594329,2.37346955,95350.0,95341.0,0.00028269]
[1735468594522,2.36625482,95349.0,95335.0,0.04955865]
[1735468594726,2.309207,95348.0,95335.0,0.04955865]
[1735468594925,2.31010809,95347.0,95335.0,0.04955865]
[1735468595120,2.309207,95346.0,95335.0,0.04955865]
[1735468595327,2.309207,95345.0,95335.0,0.04955865]
[1735468595640,2.309207,95344.0,95335.0,0.04955865]
[1735468595842,2.309207,95343.0,95335.0,0.05055865]
[1735468596044,2.309207,95342.0,95335.0,0.001]
[1735468596220,2.33721279,95341.0,95326.0,0.0001708]
[1735468596408,2.309207,95340.0,95335.0,0.002]
[1735468596608,2.309207,95339.0,95335.0,0.002]
[1735468596866,2.309207,95338.0,95326.0,0.0001708]